[Event "Titled Tuesday Blitz July 11 Late 2023"]
[White "Fiorito, Francisco"]
[Black "Rastbod, Ali"]
[WhiteFideId "180165"]
[BlackFideId "12567477"]
[WhiteElo "2600"]
[BlackElo "2694"]
[Result "1-0"]
[Round "10"]
[TimeControl "180+2"]
[Date "2023.07.11"]
[WhiteClock "0:00:13"]
[BlackClock "0:00:02"]
[Board "24"]

1. d4 {[%clk 0:03:00]}  Nf6 {[%clk 0:02:57]} 2. Nc3 {[%clk 0:03:01]}  d5 {[%clk 0:02:56]} 3. Bf4 {[%clk 0:03:00]}  c5 {[%clk 0:02:57]} 4. e3 {[%clk 0:03:00]}  cxd4 {[%clk 0:02:57]} 5. exd4 {[%clk 0:03:01]}  a6 {[%clk 0:02:57]} 6. Nf3 {[%clk 0:03:01]}  Bg4 {[%clk 0:02:58]} 7. h3 {[%clk 0:03:00]}  Bxf3 {[%clk 0:02:58]} 8. Qxf3 {[%clk 0:03:01]}  Nc6 {[%clk 0:02:58]} 9. O-O-O {[%clk 0:03:02]}  e6 {[%clk 0:02:58]} 10. g4 {[%clk 0:03:02]}  Bd6 {[%clk 0:02:59]} 11. Bxd6 {[%clk 0:02:34]}  Qxd6 {[%clk 0:02:58]} 12. g5 {[%clk 0:02:34]}  Nd7 {[%clk 0:02:39]} 13. h4 {[%clk 0:02:34]}  O-O-O {[%clk 0:02:37]} 14. Qxf7 {[%clk 0:02:24]}  Rhf8 {[%clk 0:01:48]} 15. Qxg7 {[%clk 0:02:24]}  Rxf2 {[%clk 0:01:49]} 16. Bd3 {[%clk 0:02:00]}  Qf4+ {[%clk 0:01:22]} 17. Kb1 {[%clk 0:02:00]}  Nf8 {[%clk 0:01:22]} 18. Rhf1 {[%clk 0:01:48]}  Qxh4 {[%clk 0:01:12]} 19. Rxf2 {[%clk 0:01:45]}  Qxf2 {[%clk 0:01:13]} 20. Ne2 {[%clk 0:01:07]}  Nb4 {[%clk 0:01:01]} 21. Nc1 {[%clk 0:00:58]}  Nc6 {[%clk 0:00:21]} 22. c3 {[%clk 0:00:56]}  Qg3 {[%clk 0:00:10]} 23. Rf1 {[%clk 0:00:47]}  Qc7 {[%clk 0:00:04]} 24. Qg8 {[%clk 0:00:41]}  Qe7 {[%clk 0:00:05]} 25. Rf7 {[%clk 0:00:40]}  Qd6 {[%clk 0:00:05]} 26. Rf6 {[%clk 0:00:35]}  Qe7 {[%clk 0:00:05]} 27. Nb3 {[%clk 0:00:26]}  e5 {[%clk 0:00:05]} 28. Bf5+ {[%clk 0:00:24]}  Kb8 {[%clk 0:00:05]} 29. Rf7 {[%clk 0:00:25]}  Qd6 {[%clk 0:00:05]} 30. Nc5 {[%clk 0:00:25]}  exd4 {[%clk 0:00:05]} 31. Nxb7 {[%clk 0:00:20]}  Qe5 {[%clk 0:00:04]} 32. a4 {[%clk 0:00:12]}  dxc3 {[%clk 0:00:04]} 33. Nxd8 {[%clk 0:00:12]}  Qe1+ {[%clk 0:00:02]} 34. Ka2 {[%clk 0:00:12]}  Nb4+ {[%clk 0:00:03]} 35. Kb3 {[%clk 0:00:12]}  c2 {[%clk 0:00:02]} 36. Rb7+ {[%clk 0:00:12]}  Ka8 {[%clk 0:00:02]} 37. Rxb4 {[%clk 0:00:13]}  c1=Q {[%clk 0:00:02]} 38. Qxd5+ {[%clk 0:00:13]}  Ka7 {[%clk 0:00:02]} 39. Qb7# {[%clk 0:00:13]} 1-0


[Site "https://www.chess.com"]

[Event "Titled Tuesday Blitz July 11 Late 2023"]
[White "Boldoo, Erdenepurev"]
[Black "Omelja, Artem"]
[WhiteFideId "4901037"]
[BlackFideId "14119846"]
[WhiteElo "2580"]
[BlackElo "2661"]
[Result "1-0"]
[Round "10"]
[TimeControl "180+2"]
[Date "2023.07.11"]
[WhiteClock "0:00:11"]
[BlackClock "0:00:00"]
[Board "25"]

1. d4 {[%clk 0:03:00]}  d5 {[%clk 0:02:59]} 2. Bf4 {[%clk 0:03:01]}  Nf6 {[%clk 0:02:56]} 3. Nf3 {[%clk 0:03:00]}  c5 {[%clk 0:02:56]} 4. e3 {[%clk 0:03:00]}  Nc6 {[%clk 0:02:55]} 5. Nbd2 {[%clk 0:03:00]}  Bf5 {[%clk 0:02:51]} 6. c3 {[%clk 0:02:45]}  e6 {[%clk 0:02:47]} 7. Bb5 {[%clk 0:02:43]}  Qb6 {[%clk 0:01:57]} 8. Qa4 {[%clk 0:02:37]}  a6 {[%clk 0:01:50]} 9. Bxc6+ {[%clk 0:02:34]}  Qxc6 {[%clk 0:01:49]} 10. Qxc6+ {[%clk 0:02:34]}  bxc6 {[%clk 0:01:50]} 11. dxc5 {[%clk 0:02:34]}  Bxc5 {[%clk 0:01:48]} 12. Nb3 {[%clk 0:02:32]}  Bb6 {[%clk 0:01:45]} 13. Nbd4 {[%clk 0:02:11]}  Rc8 {[%clk 0:01:09]} 14. Nxf5 {[%clk 0:02:09]}  exf5 {[%clk 0:01:07]} 15. Be5 {[%clk 0:02:03]}  Ke7 {[%clk 0:01:04]} 16. Nd4 {[%clk 0:01:58]}  g6 {[%clk 0:01:00]} 17. O-O-O {[%clk 0:01:50]}  Rhe8 {[%clk 0:00:57]} 18. Bxf6+ {[%clk 0:01:42]}  Kxf6 {[%clk 0:00:49]} 19. Ne2 {[%clk 0:01:32]}  Re4 {[%clk 0:00:34]} 20. h4 {[%clk 0:01:25]}  h5 {[%clk 0:00:29]} 21. g3 {[%clk 0:01:24]}  Rce8 {[%clk 0:00:25]} 22. Rd2 {[%clk 0:01:19]}  Rb8 {[%clk 0:00:24]} 23. Kb1 {[%clk 0:01:15]}  a5 {[%clk 0:00:24]} 24. Rc1 {[%clk 0:01:02]}  Bc5 {[%clk 0:00:22]} 25. Nd4 {[%clk 0:00:58]}  Rb6 {[%clk 0:00:11]} 26. Nb3 {[%clk 0:00:53]}  Bf8 {[%clk 0:00:08]} 27. Nxa5 {[%clk 0:00:49]}  Ra4 {[%clk 0:00:09]} 28. Nb3 {[%clk 0:00:46]}  Ke5 {[%clk 0:00:10]} 29. Rd4 {[%clk 0:00:35]}  Ra8 {[%clk 0:00:06]} 30. c4 {[%clk 0:00:32]}  Be7 {[%clk 0:00:02]} 31. cxd5 {[%clk 0:00:29]}  cxd5 {[%clk 0:00:03]} 32. Nc5 {[%clk 0:00:18]}  Rb5 {[%clk 0:00:01]} 33. Nd3+ {[%clk 0:00:14]}  Kd6 {[%clk 0:00:02]} 34. b3 {[%clk 0:00:12]}  Bf6 {[%clk 0:00:02]} 35. Rb4 {[%clk 0:00:11]}  Rba5 {[%clk 0:00:00]} 36. Rc2 {[%clk 0:00:11]} 1-0


[Site "https://www.chess.com"]

[Event "Titled Tuesday Blitz July 11 Late 2023"]
[White "benny_aizenberg"]
[Black "Francisco Guecamburu, Candela Be"]
[BlackFideId "160911"]
[WhiteElo "2657"]
[BlackElo "2576"]
[Result "1-0"]
[Round "10"]
[TimeControl "180+2"]
[Date "2023.07.11"]
[WhiteClock "0:00:10"]
[BlackClock "0:00:19"]
[Board "26"]

1. f4 {[%clk 0:03:00]}  d5 {[%clk 0:02:58]} 2. Nf3 {[%clk 0:03:00]}  Nf6 {[%clk 0:02:58]} 3. g3 {[%clk 0:03:00]}  g6 {[%clk 0:02:59]} 4. Bg2 {[%clk 0:03:00]}  Bg7 {[%clk 0:03:00]} 5. O-O {[%clk 0:03:01]}  O-O {[%clk 0:03:01]} 6. d3 {[%clk 0:03:01]}  Nc6 {[%clk 0:03:00]} 7. Qe1 {[%clk 0:03:01]}  b6 {[%clk 0:02:59]} 8. e4 {[%clk 0:02:59]}  dxe4 {[%clk 0:02:57]} 9. dxe4 {[%clk 0:03:00]}  e5 {[%clk 0:02:58]} 10. Nc3 {[%clk 0:02:56]}  Ba6 {[%clk 0:02:54]} 11. Rf2 {[%clk 0:02:56]}  Re8 {[%clk 0:02:33]} 12. f5 {[%clk 0:02:53]}  Qd6 {[%clk 0:02:28]} 13. h3 {[%clk 0:02:50]}  Rad8 {[%clk 0:02:26]} 14. g4 {[%clk 0:02:48]}  Nd4 {[%clk 0:02:12]} 15. Be3 {[%clk 0:02:47]}  Nxf3+ {[%clk 0:01:54]} 16. Bxf3 {[%clk 0:02:43]}  Bb7 {[%clk 0:01:44]} 17. g5 {[%clk 0:02:36]}  Nd7 {[%clk 0:01:44]} 18. f6 {[%clk 0:02:33]}  Bf8 {[%clk 0:01:38]} 19. h4 {[%clk 0:02:34]}  Nc5 {[%clk 0:01:27]} 20. h5 {[%clk 0:02:33]}  Qe6 {[%clk 0:01:00]} 21. hxg6 {[%clk 0:02:25]}  fxg6 {[%clk 0:00:59]} 22. Be2 {[%clk 0:02:01]}  Qf7 {[%clk 0:00:58]} 23. Qf1 {[%clk 0:02:00]}  Bc8 {[%clk 0:00:57]} 24. b4 {[%clk 0:01:27]}  Nb7 {[%clk 0:00:52]} 25. a3 {[%clk 0:01:20]}  Be6 {[%clk 0:00:51]} 26. Rh2 {[%clk 0:01:12]}  Nd6 {[%clk 0:00:47]} 27. Kg2 {[%clk 0:01:10]}  Nc4 {[%clk 0:00:44]} 28. Bxc4 {[%clk 0:01:06]}  Bxc4 {[%clk 0:00:45]} 29. Qf2 {[%clk 0:01:04]}  Rd7 {[%clk 0:00:41]} 30. Rah1 {[%clk 0:01:03]}  Qe6 {[%clk 0:00:39]} 31. Qf3 {[%clk 0:00:41]}  Red8 {[%clk 0:00:38]} 32. Kg3 {[%clk 0:00:40]}  a5 {[%clk 0:00:36]} 33. bxa5 {[%clk 0:00:25]}  Bxa3 {[%clk 0:00:36]} 34. axb6 {[%clk 0:00:23]}  cxb6 {[%clk 0:00:36]} 35. Nd5 {[%clk 0:00:22]}  Bf8 {[%clk 0:00:23]} 36. Nxb6 {[%clk 0:00:15]}  Rf7 {[%clk 0:00:21]} 37. Nxc4 {[%clk 0:00:15]}  Qxc4 {[%clk 0:00:22]} 38. Bf2 {[%clk 0:00:13]}  Qxc2 {[%clk 0:00:21]} 39. Bb6 {[%clk 0:00:12]}  Rd3 {[%clk 0:00:21]} 40. Rxc2 {[%clk 0:00:11]}  Rxf3+ {[%clk 0:00:21]} 41. Kxf3 {[%clk 0:00:12]}  h6 {[%clk 0:00:20]} 42. Be3 {[%clk 0:00:11]}  h5 {[%clk 0:00:19]} 43. Rc8 {[%clk 0:00:09]}  Rd7 {[%clk 0:00:19]} 44. Bc5 {[%clk 0:00:10]} 1-0


[Site "https://www.chess.com"]

[Event "Titled Tuesday Blitz July 11 Late 2023"]
[White "Tristan, Leonardo"]
[Black "Moral Garcia, Serafin"]
[WhiteFideId "113816"]
[BlackFideId "2201925"]
[WhiteElo "2777"]
[BlackElo "2557"]
[Result "1-0"]
[Round "10"]
[TimeControl "180+2"]
[Date "2023.07.11"]
[WhiteClock "0:00:12"]
[BlackClock "0:00:02"]
[Board "29"]

1. d4 {[%clk 0:03:00]}  Nf6 {[%clk 0:02:58]} 2. Nf3 {[%clk 0:03:01]}  g6 {[%clk 0:02:58]} 3. Bf4 {[%clk 0:03:01]}  c5 {[%clk 0:02:53]} 4. c3 {[%clk 0:02:51]}  Qb6 {[%clk 0:02:51]} 5. Qb3 {[%clk 0:02:50]}  Nc6 {[%clk 0:02:47]} 6. e3 {[%clk 0:02:44]}  Bg7 {[%clk 0:02:44]} 7. h3 {[%clk 0:02:44]}  d6 {[%clk 0:02:37]} 8. Nbd2 {[%clk 0:02:44]}  Qxb3 {[%clk 0:02:24]} 9. axb3 {[%clk 0:02:44]}  O-O {[%clk 0:02:16]} 10. Be2 {[%clk 0:02:40]}  Re8 {[%clk 0:02:07]} 11. O-O {[%clk 0:02:31]}  Bd7 {[%clk 0:01:39]} 12. Bh2 {[%clk 0:02:30]}  b6 {[%clk 0:01:26]} 13. Rfd1 {[%clk 0:02:26]}  Nd5 {[%clk 0:01:03]} 14. e4 {[%clk 0:02:02]}  Nc7 {[%clk 0:01:00]} 15. d5 {[%clk 0:01:51]}  Ne5 {[%clk 0:00:58]} 16. Nxe5 {[%clk 0:01:50]}  Bxe5 {[%clk 0:00:56]} 17. Bxe5 {[%clk 0:01:49]}  dxe5 {[%clk 0:00:57]} 18. Nf3 {[%clk 0:01:32]}  f6 {[%clk 0:00:55]} 19. d6 {[%clk 0:01:33]}  exd6 {[%clk 0:00:36]} 20. Rxd6 {[%clk 0:01:34]}  Be6 {[%clk 0:00:36]} 21. Rc6 {[%clk 0:01:18]}  Re7 {[%clk 0:00:35]} 22. Nd2 {[%clk 0:01:15]}  Kf7 {[%clk 0:00:33]} 23. Nc4 {[%clk 0:01:11]}  Bxc4 {[%clk 0:00:18]} 24. Bxc4+ {[%clk 0:01:11]}  Kg7 {[%clk 0:00:19]} 25. Rd6 {[%clk 0:01:06]}  b5 {[%clk 0:00:17]} 26. Bd5 {[%clk 0:01:03]}  Nxd5 {[%clk 0:00:16]} 27. Rxd5 {[%clk 0:01:04]}  Rc7 {[%clk 0:00:16]} 28. Ra5 {[%clk 0:00:54]}  a6 {[%clk 0:00:15]} 29. Rd6 {[%clk 0:00:54]}  Kf7 {[%clk 0:00:14]} 30. Kf1 {[%clk 0:00:51]}  Rca7 {[%clk 0:00:12]} 31. Rc6 {[%clk 0:00:51]}  Rd8 {[%clk 0:00:12]} 32. Rxc5 {[%clk 0:00:22]}  Rd2 {[%clk 0:00:11]} 33. Rcxb5 {[%clk 0:00:17]}  Rxb2 {[%clk 0:00:11]} 34. g3 {[%clk 0:00:15]}  Rd7 {[%clk 0:00:09]} 35. Rxa6 {[%clk 0:00:15]}  g5 {[%clk 0:00:07]} 36. Rbb6 {[%clk 0:00:14]}  Kg7 {[%clk 0:00:08]} 37. b4 {[%clk 0:00:11]}  h5 {[%clk 0:00:06]} 38. Rxf6 {[%clk 0:00:11]}  g4 {[%clk 0:00:01]} 39. hxg4 {[%clk 0:00:11]}  hxg4 {[%clk 0:00:02]} 40. Rg6+ {[%clk 0:00:11]}  Kf7 {[%clk 0:00:03]} 41. Raf6+ {[%clk 0:00:10]}  Ke7 {[%clk 0:00:02]} 42. Rg7+ {[%clk 0:00:11]}  Kxf6 {[%clk 0:00:03]} 43. Rxd7 {[%clk 0:00:11]}  Rc2 {[%clk 0:00:03]} 44. Rc7 {[%clk 0:00:12]}  Kg5 {[%clk 0:00:02]} 45. b5 {[%clk 0:00:12]} 1-0


[Site "https://www.chess.com"]

[Event "Titled Tuesday Blitz July 11 Late 2023"]
[White "Fantinel, Thibault"]
[Black "Martin Barcelo, Carles"]
[WhiteFideId "663395"]
[BlackFideId "24561444"]
[WhiteElo "2644"]
[BlackElo "2472"]
[Result "1-0"]
[Round "10"]
[TimeControl "180+2"]
[Date "2023.07.11"]
[WhiteClock "0:00:09"]
[BlackClock "0:00:00"]
[Board "33"]

1. d4 {[%clk 0:03:00]}  d5 {[%clk 0:02:59]} 2. Nf3 {[%clk 0:03:01]}  Nf6 {[%clk 0:02:56]} 3. Bf4 {[%clk 0:03:01]}  e6 {[%clk 0:02:50]} 4. e3 {[%clk 0:03:01]}  Bd6 {[%clk 0:02:51]} 5. Nbd2 {[%clk 0:03:02]}  O-O {[%clk 0:02:49]} 6. c3 {[%clk 0:02:59]}  b6 {[%clk 0:02:47]} 7. h4 {[%clk 0:02:59]}  c5 {[%clk 0:02:40]} 8. h5 {[%clk 0:02:56]}  h6 {[%clk 0:02:40]} 9. Ne5 {[%clk 0:02:54]}  Bxe5 {[%clk 0:02:23]} 10. dxe5 {[%clk 0:02:51]}  Ne4 {[%clk 0:02:23]} 11. Nxe4 {[%clk 0:02:43]}  dxe4 {[%clk 0:02:24]} 12. Qg4 {[%clk 0:02:43]}  Kh8 {[%clk 0:02:22]} 13. Rd1 {[%clk 0:02:43]}  Qe7 {[%clk 0:02:18]} 14. Rh3 {[%clk 0:02:37]}  f5 {[%clk 0:02:01]} 15. Qg6 {[%clk 0:02:11]}  Nc6 {[%clk 0:01:54]} 16. Bb5 {[%clk 0:01:46]}  Bd7 {[%clk 0:01:40]} 17. Rd6 {[%clk 0:01:30]}  Rac8 {[%clk 0:01:31]} 18. Rg3 {[%clk 0:01:15]}  Qf7 {[%clk 0:01:13]} 19. Bxh6 {[%clk 0:01:04]}  Qxg6 {[%clk 0:00:50]} 20. Rxg6 {[%clk 0:01:05]}  Rf7 {[%clk 0:00:42]} 21. Rxg7 {[%clk 0:00:52]}  Rxg7 {[%clk 0:00:18]} 22. Bxg7+ {[%clk 0:00:53]}  Kxg7 {[%clk 0:00:18]} 23. Rxd7+ {[%clk 0:00:52]}  Kh6 {[%clk 0:00:19]} 24. Rd6 {[%clk 0:00:24]}  Nd8 {[%clk 0:00:18]} 25. Be2 {[%clk 0:00:25]}  Kg5 {[%clk 0:00:08]} 26. a4 {[%clk 0:00:22]}  Kh6 {[%clk 0:00:03]} 27. f4 {[%clk 0:00:19]}  exf3 {[%clk 0:00:03]} 28. Bxf3 {[%clk 0:00:19]}  Kg5 {[%clk 0:00:03]} 29. Kf2 {[%clk 0:00:18]}  Kh6 {[%clk 0:00:02]} 30. Kg3 {[%clk 0:00:19]}  Kg5 {[%clk 0:00:03]} 31. c4 {[%clk 0:00:17]}  Rb8 {[%clk 0:00:03]} 32. b3 {[%clk 0:00:17]}  Rc8 {[%clk 0:00:04]} 33. Rd7 {[%clk 0:00:08]}  Nc6 {[%clk 0:00:03]} 34. Bxc6 {[%clk 0:00:08]}  Rxc6 {[%clk 0:00:04]} 35. Rxa7 {[%clk 0:00:07]}  Kxh5 {[%clk 0:00:04]} 36. Kf4 {[%clk 0:00:08]}  Rc8 {[%clk 0:00:03]} 37. Rb7 {[%clk 0:00:08]}  Rd8 {[%clk 0:00:02]} 38. Rxb6 {[%clk 0:00:08]}  Rd3 {[%clk 0:00:02]} 39. Rxe6 {[%clk 0:00:08]}  Rxb3 {[%clk 0:00:03]} 40. Rf6 {[%clk 0:00:07]}  Ra3 {[%clk 0:00:01]} 41. Rxf5+ {[%clk 0:00:08]}  Kg6 {[%clk 0:00:01]} 42. e6 {[%clk 0:00:08]}  Rxa4 {[%clk 0:00:01]} 43. Rxc5 {[%clk 0:00:08]}  Ra8 {[%clk 0:00:01]} 44. Rc6 {[%clk 0:00:08]}  Re8 {[%clk 0:00:00]} 45. Ke5 {[%clk 0:00:09]} 1-0


[Site "https://www.chess.com"]

[Event "Titled Tuesday Blitz July 11 Late 2023"]
[White "Seletsky, Grigory"]
[Black "Martinez Ramirez, Lennis"]
[WhiteFideId "14112191"]
[BlackFideId "3509079"]
[WhiteElo "2456"]
[BlackElo "2643"]
[Result "1-0"]
[Round "10"]
[TimeControl "180+2"]
[Date "2023.07.11"]
[WhiteClock "0:00:13"]
[BlackClock "0:00:02"]
[Board "35"]

1. d4 {[%clk 0:03:00]}  Nf6 {[%clk 0:02:54]} 2. Nf3 {[%clk 0:03:01]}  d5 {[%clk 0:02:52]} 3. Bg5 {[%clk 0:03:01]}  Ne4 {[%clk 0:02:52]} 4. c3 {[%clk 0:02:58]}  Nxg5 {[%clk 0:02:51]} 5. Nxg5 {[%clk 0:02:59]}  e5 {[%clk 0:02:51]} 6. Nf3 {[%clk 0:02:59]}  e4 {[%clk 0:02:51]} 7. Nfd2 {[%clk 0:02:59]}  e3 {[%clk 0:02:51]} 8. fxe3 {[%clk 0:02:59]}  Bd6 {[%clk 0:02:47]} 9. g3 {[%clk 0:02:47]}  Qg5 {[%clk 0:02:38]} 10. Bg2 {[%clk 0:02:43]}  h5 {[%clk 0:02:08]} 11. e4 {[%clk 0:02:40]}  h4 {[%clk 0:02:08]} 12. e5 {[%clk 0:02:39]}  hxg3 {[%clk 0:01:53]} 13. Nf3 {[%clk 0:02:33]}  Qe3 {[%clk 0:01:49]} 14. Rf1 {[%clk 0:02:22]}  Be7 {[%clk 0:01:27]} 15. hxg3 {[%clk 0:02:13]}  Qh6 {[%clk 0:01:27]} 16. Qd2 {[%clk 0:02:03]}  Qg6 {[%clk 0:01:27]} 17. Kf2 {[%clk 0:01:58]}  Nc6 {[%clk 0:01:14]} 18. Na3 {[%clk 0:01:52]}  Bf5 {[%clk 0:01:13]} 19. Rh1 {[%clk 0:01:47]}  O-O-O {[%clk 0:01:13]} 20. Rxh8 {[%clk 0:01:39]}  Rxh8 {[%clk 0:01:14]} 21. Rh1 {[%clk 0:01:38]}  Rxh1 {[%clk 0:01:14]} 22. Bxh1 {[%clk 0:01:38]}  Be4 {[%clk 0:01:14]} 23. Bg2 {[%clk 0:01:34]}  a6 {[%clk 0:01:08]} 24. Ne1 {[%clk 0:01:31]}  f6 {[%clk 0:01:07]} 25. Bxe4 {[%clk 0:01:22]}  dxe4 {[%clk 0:01:03]} 26. exf6 {[%clk 0:01:04]}  gxf6 {[%clk 0:01:01]} 27. Ng2 {[%clk 0:01:04]}  f5 {[%clk 0:01:00]} 28. Nc4 {[%clk 0:00:59]}  Bg5 {[%clk 0:00:59]} 29. Nf4 {[%clk 0:00:59]}  Qh6 {[%clk 0:00:59]} 30. Kg2 {[%clk 0:00:58]}  Ne7 {[%clk 0:00:58]} 31. e3 {[%clk 0:00:50]}  Bxf4 {[%clk 0:00:56]} 32. exf4 {[%clk 0:00:48]}  Qh5 {[%clk 0:00:52]} 33. Ne5 {[%clk 0:00:43]}  Nd5 {[%clk 0:00:52]} 34. c4 {[%clk 0:00:38]}  Nf6 {[%clk 0:00:46]} 35. d5 {[%clk 0:00:36]}  Ng4 {[%clk 0:00:44]} 36. Qd4 {[%clk 0:00:31]}  Qh2+ {[%clk 0:00:44]} 37. Kf1 {[%clk 0:00:32]}  Qh1+ {[%clk 0:00:24]} 38. Ke2 {[%clk 0:00:31]}  Qg2+ {[%clk 0:00:25]} 39. Kd1 {[%clk 0:00:30]}  Nf2+ {[%clk 0:00:16]} 40. Kc1 {[%clk 0:00:28]}  Qxg3 {[%clk 0:00:14]} 41. d6 {[%clk 0:00:25]}  Qxf4+ {[%clk 0:00:14]} 42. Kc2 {[%clk 0:00:25]}  cxd6 {[%clk 0:00:07]} 43. Qxd6 {[%clk 0:00:25]}  e3 {[%clk 0:00:06]} 44. c5 {[%clk 0:00:19]}  Qa4+ {[%clk 0:00:05]} 45. Kc1 {[%clk 0:00:16]}  Qe8 {[%clk 0:00:02]} 46. Nd7 {[%clk 0:00:14]}  e2 {[%clk 0:00:02]} 47. Nb6# {[%clk 0:00:13]} 1-0


[Site "https://www.chess.com"]

[Event "Titled Tuesday Blitz July 11 Late 2023"]
[White "Bjelobrk, Igor"]
[Black "Pinero Rodriguez, Carlos Jose"]
[WhiteFideId "4300726"]
[BlackFideId "3901726"]
[WhiteElo "2640"]
[BlackElo "2450"]
[Result "0-1"]
[Round "10"]
[TimeControl "180+2"]
[Date "2023.07.11"]
[WhiteClock "0:00:41"]
[BlackClock "0:01:45"]
[Board "36"]

1. d4 {[%clk 0:03:00]}  Nf6 {[%clk 0:02:59]} 2. c4 {[%clk 0:03:00]}  e6 {[%clk 0:03:00]} 3. g3 {[%clk 0:02:59]}  Bb4+ {[%clk 0:03:00]} 4. Bd2 {[%clk 0:02:58]}  Qe7 {[%clk 0:03:00]} 5. Bg2 {[%clk 0:02:57]}  O-O {[%clk 0:03:00]} 6. e3 {[%clk 0:02:56]}  Bxd2+ {[%clk 0:03:00]} 7. Nxd2 {[%clk 0:02:55]}  d6 {[%clk 0:03:01]} 8. Ne2 {[%clk 0:02:54]}  e5 {[%clk 0:03:01]} 9. O-O {[%clk 0:02:53]}  Re8 {[%clk 0:03:00]} 10. Nc3 {[%clk 0:02:52]}  c6 {[%clk 0:03:00]} 11. b4 {[%clk 0:02:49]}  Bf5 {[%clk 0:02:57]} 12. a4 {[%clk 0:02:39]}  Nbd7 {[%clk 0:02:48]} 13. b5 {[%clk 0:02:36]}  e4 {[%clk 0:02:47]} 14. Rb1 {[%clk 0:02:27]}  c5 {[%clk 0:02:46]} 15. dxc5 {[%clk 0:01:56]}  dxc5 {[%clk 0:02:41]} 16. Nd5 {[%clk 0:01:56]}  Nxd5 {[%clk 0:02:41]} 17. cxd5 {[%clk 0:01:57]}  Nf6 {[%clk 0:02:41]} 18. Nc4 {[%clk 0:01:56]}  b6 {[%clk 0:02:41]} 19. a5 {[%clk 0:01:53]}  Rad8 {[%clk 0:02:24]} 20. d6 {[%clk 0:01:52]}  Qb7 {[%clk 0:02:20]} 21. Qa4 {[%clk 0:01:46]}  Be6 {[%clk 0:02:18]} 22. Rfd1 {[%clk 0:01:46]}  Bxc4 {[%clk 0:02:14]} 23. Qxc4 {[%clk 0:01:45]}  Re6 {[%clk 0:02:14]} 24. a6 {[%clk 0:01:31]}  Qa8 {[%clk 0:02:14]} 25. d7 {[%clk 0:01:22]}  Re7 {[%clk 0:02:14]} 26. Bh3 {[%clk 0:01:11]}  Qb8 {[%clk 0:01:48]} 27. Rb2 {[%clk 0:01:05]}  g5 {[%clk 0:01:45]} 28. Bf5 {[%clk 0:01:04]}  Qe5 {[%clk 0:01:46]} 29. Rbd2 {[%clk 0:00:41]}  Qxf5 {[%clk 0:01:45]} 0-1


[Site "https://www.chess.com"]

[Event "Titled Tuesday Blitz July 11 Late 2023"]
[White "Al Mukhaini, Shima"]
[Black "Swayams, Mishra"]
[WhiteFideId "22005854"]
[BlackFideId "5028183"]
[WhiteElo "2365"]
[BlackElo "2626"]
[Result "1-0"]
[Round "10"]
[TimeControl "180+2"]
[Date "2023.07.11"]
[WhiteClock "0:00:07"]
[BlackClock "0:00:07"]
[Board "37"]

1. b3 {[%clk 0:02:54]}  e5 {[%clk 0:02:56]} 2. Bb2 {[%clk 0:02:54]}  d6 {[%clk 0:02:57]} 3. e3 {[%clk 0:02:54]}  g6 {[%clk 0:02:57]} 4. d4 {[%clk 0:02:54]}  Bg7 {[%clk 0:02:57]} 5. dxe5 {[%clk 0:02:54]}  Nc6 {[%clk 0:02:54]} 6. Nf3 {[%clk 0:02:54]}  Nge7 {[%clk 0:02:52]} 7. Be2 {[%clk 0:02:45]}  O-O {[%clk 0:02:50]} 8. O-O {[%clk 0:02:45]}  Nxe5 {[%clk 0:02:47]} 9. Nxe5 {[%clk 0:02:45]}  Bxe5 {[%clk 0:02:46]} 10. Bxe5 {[%clk 0:02:44]}  dxe5 {[%clk 0:02:47]} 11. Qxd8 {[%clk 0:02:44]}  Rxd8 {[%clk 0:02:47]} 12. Rd1 {[%clk 0:02:44]}  Bf5 {[%clk 0:02:47]} 13. Na3 {[%clk 0:02:43]}  Nd5 {[%clk 0:02:36]} 14. Nb5 {[%clk 0:02:07]}  c6 {[%clk 0:02:01]} 15. c4 {[%clk 0:02:06]}  Nxe3 {[%clk 0:01:47]} 16. fxe3 {[%clk 0:02:05]}  cxb5 {[%clk 0:01:47]} 17. cxb5 {[%clk 0:02:05]}  Bc2 {[%clk 0:01:45]} 18. Rxd8+ {[%clk 0:01:46]}  Rxd8 {[%clk 0:01:46]} 19. Kf2 {[%clk 0:01:43]}  b6 {[%clk 0:01:36]} 20. Rc1 {[%clk 0:01:38]}  Be4 {[%clk 0:01:33]} 21. Rc7 {[%clk 0:01:14]}  Rd2 {[%clk 0:01:33]} 22. Ke1 {[%clk 0:01:14]}  Rxa2 {[%clk 0:01:33]} 23. Bc4 {[%clk 0:01:14]}  Bxg2 {[%clk 0:01:24]} 24. Rxf7 {[%clk 0:01:10]}  Kh8 {[%clk 0:01:23]} 25. h4 {[%clk 0:00:59]}  Bh3 {[%clk 0:01:18]} 26. Re7 {[%clk 0:00:53]}  Bg4 {[%clk 0:01:11]} 27. e4 {[%clk 0:00:44]}  Bf3 {[%clk 0:01:07]} 28. Bd5 {[%clk 0:00:43]}  Ra5 {[%clk 0:00:44]} 29. Kf2 {[%clk 0:00:38]}  Bh1 {[%clk 0:00:39]} 30. Bc6 {[%clk 0:00:24]}  a6 {[%clk 0:00:34]} 31. Ra7 {[%clk 0:00:19]}  axb5 {[%clk 0:00:31]} 32. Rb7 {[%clk 0:00:18]}  Ra3 {[%clk 0:00:27]} 33. Bd5 {[%clk 0:00:18]}  Ra2+ {[%clk 0:00:21]} 34. Kg3 {[%clk 0:00:18]}  Rc2 {[%clk 0:00:18]} 35. Rxb6 {[%clk 0:00:17]}  Rc5 {[%clk 0:00:16]} 36. b4 {[%clk 0:00:16]}  Rc3+ {[%clk 0:00:16]} 37. Kh2 {[%clk 0:00:16]}  Bf3 {[%clk 0:00:15]} 38. Rxb5 {[%clk 0:00:16]}  Re3 {[%clk 0:00:16]} 39. Rb8+ {[%clk 0:00:11]}  Kg7 {[%clk 0:00:15]} 40. Re8 {[%clk 0:00:11]}  Kf6 {[%clk 0:00:13]} 41. Re6+ {[%clk 0:00:11]}  Kg7 {[%clk 0:00:13]} 42. Re7+ {[%clk 0:00:11]}  Kh6 {[%clk 0:00:12]} 43. Rxe5 {[%clk 0:00:11]}  Bg4 {[%clk 0:00:11]} 44. b5 {[%clk 0:00:11]}  Rh3+ {[%clk 0:00:10]} 45. Kg2 {[%clk 0:00:12]}  Ra3 {[%clk 0:00:08]} 46. b6 {[%clk 0:00:11]}  Ra6 {[%clk 0:00:08]} 47. b7 {[%clk 0:00:11]}  Rb6 {[%clk 0:00:09]} 48. Re8 {[%clk 0:00:11]}  Rb2+ {[%clk 0:00:07]} 49. Kg3 {[%clk 0:00:12]}  Kh5 {[%clk 0:00:06]} 50. b8=Q {[%clk 0:00:09]}  Rxb8 {[%clk 0:00:07]} 51. Rxb8 {[%clk 0:00:09]}  h6 {[%clk 0:00:08]} 52. Bf7 {[%clk 0:00:07]}  Bd1 {[%clk 0:00:07]} 53. Rb5# {[%clk 0:00:07]} 1-0


[Site "https://www.chess.com"]